fUST/lending_fUST_20251231
["ID","MTS","AMOUNT","RATE_DAILY","PERIOD"]
[400144600,1767151839654,-500.0,0.00013699,2]
[400144601,1767151839664,-500.1697288,0.00013699,2]
[400144602,1767151839673,-500.0,0.00013699,2]
[400144603,1767151839682,-500.0,0.00013699,2]
[400144604,1767151839691,-500.0,0.00013699,2]
[400144605,1767151839700,-346.46150426,0.00013699,2]
[400144606,1767151839709,-500.0,0.00013699,2]
[400144607,1767151839718,-500.0,0.00013699,2]
[400144608,1767151839727,-500.0,0.00013699,2]
[400144609,1767151839736,-159.68059141,0.00013699,2]
[400144610,1767151839746,-500.0,0.00013699,2]
[400144611,1767151839757,-500.0,0.00013699,2]
[400144612,1767151839766,-500.0,0.00013699,2]
[400144613,1767151839775,-500.0,0.00013699,2]
[400144614,1767151839785,-500.0,0.00013699,2]
[400144615,1767151839794,-500.0,0.00013699,2]
[400144616,1767151839804,-500.0,0.00013699,2]
[400144617,1767151839813,-500.0,0.00013699,2]
[400144618,1767151839823,-165.03764715,0.00013699,2]
[400144619,1767151839832,-160.3309554,0.00013699,2]
[400144620,1767151839841,-298.53483888,0.00013699,2]
[400144621,1767151839851,-160.18745103,0.00013699,2]
[400144622,1767151839860,-158.38534191,0.00013699,2]
[400144623,1767151839870,-158.38533297,0.00013699,2]
[400144624,1767151839879,-260.2481779,0.00013699,2]
[400144625,1767151839888,-500.0,0.00013699,2]
[400144626,1767151839897,-237.8458189,0.00013699,2]
[400144627,1767151839907,-500.0,0.00013699,2]
[400144628,1767151839916,-500.0,0.00013699,2]
[400144629,1767151839925,-188.42009972,0.00013699,2]
[400144630,1767151839934,-500.0,0.00013699,2]
[400144631,1767151839943,-500.0,0.00013699,2]
[400144632,1767151839954,-500.0,0.00013699,2]
[400144633,1767151839964,-500.0,0.00013699,2]
[400144634,1767151839974,-500.0,0.00013699,2]
[400144636,1767151839982,-500.0,0.00013699,2]
[400144638,1767151839991,-500.0,0.00013699,2]
[400144640,1767151840001,-260.28159851,0.00013699,2]
[400144641,1767151840010,-158.18512013,0.00013699,2]
[400144642,1767151840020,-158.18512633,0.00013699,2]
[400144643,1767151840029,-416.75445415,0.00013699,2]
[400144644,1767151840039,-500.0,0.00013699,2]
[400144645,1767151840048,-157.18386067,0.00013699,2]
[400144646,1767151840060,-500.0,0.00013699,2]
[400144647,1767151840070,-500.0,0.00013699,2]
[400144648,1767151840079,-500.0,0.00013699,2]
[400144649,1767151840088,-500.0,0.00013699,2]
[400144650,1767151840099,-150.35034149,0.00013699,2]
[400144651,1767151840108,-500.0,0.00013699,2]
[400144652,1767151840118,-500.0,0.00013699,2]
[400144653,1767151840128,-500.0,0.00013699,2]
[400144654,1767151840138,-158.38534465,0.00013699,2]
[400144655,1767151840149,-158.39206841,0.00013699,2]
[400144656,1767151840158,-500.0,0.00013699,2]
[400144657,1767151840168,-158.38532202,0.00013699,2]
[400144658,1767151840177,-500.0,0.00013699,2]
[400144659,1767151840187,-500.0,0.00013699,2]
[400144660,1767151840196,-500.0,0.00013699,2]
[400144661,1767151840210,-500.0,0.00013699,2]
[400144662,1767151840219,-500.0,0.00013699,2]
[400144663,1767151840229,-500.0,0.00013699,2]
[400144664,1767151840239,-500.0,0.00013699,2]
[400144665,1767151840248,-178.08460977,0.00013699,2]
[400144666,1767151840258,-158.38886572,0.00013699,2]
[400144668,1767151840267,-160.15137988,0.00013699,2]
[400144669,1767151840284,-565.555714,0.00013699,2]
[400144670,1767151840294,-500.0,0.00013699,2]
[400144671,1767151840303,-500.0,0.00013699,2]
[400144672,1767151840313,-500.0,0.00013699,2]
[400144673,1767151840322,-587.30545204,0.00013699,2]
[400144674,1767151840332,-500.0,0.00013699,2]
[400144675,1767151840341,-500.0,0.00013699,2]
[400144676,1767151840350,-500.0,0.00013699,2]
[400144677,1767151840359,-303.93264249,0.00013699,2]
[400144678,1767151840369,-500.0,0.00013699,2]
[400144679,1767151840378,-158.38534385,0.00013699,2]
[400144680,1767151840515,-500.0,0.00013699,2]
[400144681,1767151840524,-500.0,0.00013699,2]
[400144682,1767151840534,-500.0,0.00013699,2]
[400144683,1767151840543,-500.0,0.00013699,2]
[400144684,1767151840553,-525.82485317,0.00013699,2]
[400144685,1767151840562,-500.0,0.00013699,2]
[400144686,1767151840576,-500.0,0.00013699,2]
[400144687,1767151840592,-500.0,0.00013699,2]
[400144688,1767151840601,-540.63230604,0.00013699,2]
[400144689,1767151840610,-500.57498562,0.00013699,2]
[400144690,1767151840619,-500.0,0.00013699,2]
[400144691,1767151840628,-500.0,0.00013699,2]
[400144692,1767151840638,-158.3853059,0.00013699,2]
[400144693,1767151840647,-500.0,0.00013699,2]
[400144694,1767151840656,-500.0,0.00013699,2]
[400144695,1767151840666,-500.0,0.00013699,2]
[400144696,1767151840676,-500.0,0.00013699,2]
[400144697,1767151840685,-500.0,0.00013699,2]
[400144698,1767151840694,-500.0,0.00013699,2]
[400144699,1767151840703,-163.65866633,0.00013699,2]
[400144700,1767151840712,-307.59957655,0.00013699,2]
[400144701,1767151840721,-500.0,0.00013699,2]
[400144702,1767151840730,-500.0,0.00013699,2]
[400144703,1767151840739,-500.0,0.00013699,2]
[400144704,1767151840748,-500.0,0.00013699,2]
[400144705,1767151840757,-500.0,0.00013699,2]
[400144706,1767151840768,-500.0,0.00013699,2]
[400144707,1767151840778,-500.0,0.00013699,2]
[400144708,1767151840787,-500.0,0.00013699,2]
[400144709,1767151840796,-500.0,0.00013699,2]
[400144710,1767151840806,-500.0,0.00013699,2]
[400144711,1767151840815,-500.0,0.00013699,2]
[400144712,1767151840824,-500.0,0.00013699,2]
[400144713,1767151840834,-500.0,0.00013699,2]
[400144714,1767151840843,-500.0,0.00013699,2]
[400144715,1767151840852,-213.3181846,0.00013699,2]
[400144716,1767151840861,-500.0,0.00013699,2]
[400144717,1767151840871,-500.0,0.00013699,2]
[400144718,1767151840880,-203.48409679,0.00013776,2]
[400144719,1767151840889,-289.58338065,0.00013792,2]
[400144720,1767151840898,-1262.02,0.0001382,2]
[400144721,1767151840907,-1262.02,0.0001382,2]
[400144722,1767151840916,-1262.02,0.0001382,2]
[400144723,1767151840925,-1262.02,0.0001382,2]
[400144724,1767151840934,-1262.02,0.0001382,2]
[400144725,1767151840943,-1262.05991964,0.0001382,2]
[400144726,1767151840952,-1000.0,0.00013821,2]
[400144727,1767151840961,-913.99757981,0.00013821,2]
[400144728,1767151840971,-1000.0,0.00013821,2]
[400144729,1767151840980,-381.16221649,0.00013821,2]
[400144730,1767151840989,-1044.63270575,0.00013821,2]
[400144731,1767151840999,-815.88685405,0.00013821,2]
[400144732,1767151841008,-1000.0,0.00013821,2]
[400144733,1767151841017,-1000.0,0.00013821,2]
[400144734,1767151841027,-160.63497667,0.00013821,2]
[400144735,1767151841036,-1000.0,0.00013821,2]
[400144736,1767151841045,-1000.0,0.00013821,2]
[400144737,1767151841055,-1000.0,0.00013821,2]
[400144738,1767151841065,-1000.0,0.00013821,2]
[400144739,1767151841074,-1000.0,0.00013821,2]
[400144740,1767151841084,-1000.0,0.00013821,2]
[400144741,1767151841093,-1000.0,0.00013821,2]
[400144742,1767151841103,-1000.0,0.00013821,2]
[400144743,1767151841112,-1000.0,0.00013821,2]
[400144744,1767151841121,-1000.0,0.00013821,2]
[400144745,1767151841131,-1000.0,0.00013821,2]
[400144746,1767151841140,-177.12142034,0.00013821,2]
[400144747,1767151841149,-1000.0,0.00013821,2]
[400144748,1767151841159,-1000.0,0.00013821,2]
[400144749,1767151841169,-434.88387303,0.00013821,2]
[400144750,1767151841178,-1000.0,0.00013821,2]
[400144751,1767151841188,-1000.0,0.00013821,2]
[400144752,1767151841197,-1000.0,0.00013821,2]
[400144753,1767151841210,-1000.0,0.00013821,2]
[400144754,1767151841219,-1000.0,0.00013821,2]
[400144755,1767151841229,-1000.0,0.00013821,2]
[400144756,1767151841239,-1000.0,0.00013821,2]
[400144757,1767151841250,-1000.0,0.00013821,2]
[400144758,1767151841259,-1000.0,0.00013821,2]
[400144759,1767151841269,-1000.0,0.00013821,2]
[400144760,1767151841278,-1000.0,0.00013821,2]
[400144761,1767151841287,-1000.0,0.00013821,2]
[400144762,1767151841296,-1000.0,0.00013821,2]
[400144763,1767151841306,-1000.0,0.00013821,2]
[400144764,1767151841315,-1000.0,0.00013821,2]
[400144765,1767151841325,-1000.0,0.00013821,2]
[400144766,1767151841334,-1000.0,0.00013821,2]
[400144767,1767151841345,-1000.0,0.00013821,2]
[400144768,1767151841354,-1000.0,0.00013821,2]
[400144769,1767151841364,-1000.0,0.00013821,2]
[400144770,1767151841374,-1000.0,0.00013821,2]
[400144771,1767151841386,-686.16786472,0.00013821,2]
[400144772,1767151841395,-1000.0,0.00013821,2]
[400144773,1767151841405,-1102.47879957,0.00013821,2]
[400144774,1767151841414,-2119.9,0.00013869,2]
[400144775,1767151841424,-163.51788502,0.00013973,2]
[400144776,1767151841433,-301.0,0.00014215,2]
[400144777,1767151841443,-587.0,0.00014215,2]
[400144778,1767151841452,-587.0,0.00014215,2]
[400144779,1767151841461,-2351.0,0.00014217,2]
[400144780,1767151841471,-600.0,0.00014221,2]
[400144781,1767151841481,-433.15519118,0.00014247,2]
[400144782,1767151841490,-908.24491784,0.00014247,2]
[400144783,1767151841499,-251.84601956,0.00014247,2]
[400144784,1767151841508,-1000.0,0.00014247,2]
[400144785,1767151841517,-1000.0,0.00014247,2]
[400144786,1767151841526,-1000.0,0.00014247,2]
[400144787,1767151841535,-1000.0,0.00014247,2]
[400144788,1767151841545,-1000.0,0.00014247,2]
[400144789,1767151841554,-1000.0,0.00014247,2]
[400144790,1767151841563,-1000.0,0.00014247,2]
[400144791,1767151841572,-500.48099046,0.00014247,2]
[400144792,1767151841581,-1000.0,0.00014247,2]
[400144793,1767151841590,-1000.0,0.00014247,2]
[400144794,1767151841599,-1000.0,0.00014247,2]
[400144795,1767151841609,-1000.0,0.00014247,2]
[400144796,1767151841618,-1000.0,0.00014247,2]
[400144797,1767151841627,-500.4478313,0.00014247,2]
[400144798,1767151841636,-1002.4340095,0.00014247,2]
[400144799,1767151841645,-1005.9697834,0.00014247,2]
[400144800,1767151841655,-688.75934812,0.00014247,2]
[400144801,1767151841663,-1000.0,0.00014247,2]
[400144802,1767151841673,-1000.0,0.00014247,2]
[400144803,1767151841682,-1000.0,0.00014247,2]
[400144804,1767151841692,-1000.0,0.00014247,2]
[400144805,1767151841700,-1000.0,0.00014247,2]
[400144806,1767151841710,-1000.0,0.00014247,2]
[400144807,1767151841719,-500.68443154,0.00014247,2]
[400144808,1767151841727,-1000.0,0.00014247,2]
[400144809,1767151841737,-1000.0,0.00014247,2]
[400144810,1767151841746,-1000.0,0.00014247,2]
[400144811,1767151841755,-1000.0,0.00014247,2]
[400144812,1767151841765,-1000.0,0.00014247,2]
[400144813,1767151841774,-1000.0,0.00014247,2]
[400144814,1767151841783,-1000.0,0.00014247,2]
[400144815,1767151841792,-495.63847364,0.00014247,2]
[400144816,1767151841802,-1000.0,0.00014247,2]
[400144817,1767151841812,-345.96405937,0.00014247,2]
[400144818,1767151841821,-1000.0,0.00014247,2]
[400144819,1767151841830,-1000.0,0.00014247,2]
[400144820,1767151841839,-1000.0,0.00014247,2]
[400144821,1767151841849,-1000.0,0.00014247,2]
[400144822,1767151841858,-911.90264951,0.00014247,2]
[400144823,1767151841868,-1000.75482131,0.00014247,2]
[400144824,1767151841878,-1000.0,0.00014247,2]
[400144825,1767151841887,-1000.0,0.00014247,2]
[400144826,1767151841896,-1000.0,0.00014247,2]
[400144827,1767151841905,-866.45646788,0.00014247,2]
[400144828,1767151841915,-1000.0,0.00014247,2]
[400144829,1767151841930,-439.97362328,0.00014247,2]
[400144830,1767151841940,-1000.0,0.00014247,2]
[400144831,1767151841949,-1000.0,0.00014247,2]
[400144832,1767151841958,-1000.0,0.00014247,2]
[400144833,1767151841967,-1000.0,0.00014247,2]
[400144834,1767151841976,-609.17214565,0.00014247,2]
[400144835,1767151841985,-1000.0,0.00014247,2]
[400144836,1767151841995,-1000.0,0.00014247,2]
[400144837,1767151842004,-1000.0,0.00014247,2]
[400144838,1767151842013,-941.53284855,0.00014247,2]
[400144839,1767151842022,-1000.0,0.00014247,2]
[400144840,1767151842031,-1000.0,0.00014247,2]
[400144841,1767151842040,-295.43360933,0.00014247,2]
[400144842,1767151842050,-1000.0,0.00014247,2]
[400144843,1767151842059,-1000.0,0.00014247,2]
[400144844,1767151842068,-1000.0,0.00014247,2]
[400144845,1767151842078,-454.65827101,0.00014247,2]
[400144846,1767151842087,-1000.0,0.00014247,2]
[400144847,1767151842097,-1000.0,0.00014247,2]
[400144848,1767151842107,-1000.0,0.00014247,2]
[400144849,1767151842116,-1000.0,0.00014247,2]
[400144850,1767151842126,-1000.0,0.00014247,2]
[400144851,1767151842135,-1000.0,0.00014247,2]
[400144852,1767151842144,-1000.0,0.00014247,2]
[400144853,1767151842153,-1000.0,0.00014247,2]
[400144854,1767151842163,-1000.0,0.00014247,2]
[400144855,1767151842173,-1000.0,0.00014247,2]
[400144856,1767151842182,-1000.0,0.00014247,2]
[400144857,1767151842191,-1000.0,0.00014247,2]
[400144858,1767151842200,-267.6781502,0.00014247,2]
[400144859,1767151842213,-1000.0,0.00014247,2]
[400144860,1767151842222,-300.0,0.00014267,2]
[400144861,1767151842232,-2351.0,0.00014267,2]
[400144862,1767151842241,-1500.0,0.00014368,2]
[400144863,1767151842251,-1500.0,0.00014368,2]
[400144864,1767151842260,-1500.0,0.00014368,2]
[400144865,1767151842269,-501.81918671,0.00014368,2]
[400144866,1767151842279,-561.98334321,0.00014368,2]
[400144867,1767151842288,-1500.0,0.00014368,2]
[400144868,1767151842297,-1500.0,0.00014368,2]
[400144869,1767151842307,-1500.0,0.00014368,2]
[400144870,1767151842316,-1500.0,0.00014368,2]
[400144871,1767151842326,-1282.65977069,0.00014368,2]
[400144873,1767151842336,-1500.0,0.00014368,2]
[400144875,1767151842345,-1500.0,0.00014368,2]
[400144877,1767151842355,-1500.0,0.00014368,2]
[400144878,1767151842365,-1500.0,0.00014368,2]
[400144879,1767151842375,-1575.25470264,0.00014368,2]
[400144880,1767151842384,-696.20087533,0.00014368,2]
[400144881,1767151842394,-1500.0,0.00014368,2]
[400144882,1767151842403,-1500.0,0.00014368,2]
[400144883,1767151842413,-1160.40400037,0.00014368,2]
[400144884,1767151842423,-1500.0,0.00014368,2]
[400144885,1767151842432,-1252.44576455,0.00014368,2]
[400144886,1767151842442,-1500.0,0.00014368,2]
[400144887,1767151842451,-750.79014339,0.00014368,2]
[400144888,1767151842460,-349.3977641,0.00014368,2]
[400144889,1767151842469,-1500.0,0.00014368,2]
[400144890,1767151842479,-1500.0,0.00014368,2]
[400144891,1767151842489,-1500.0,0.00014368,2]
[400144892,1767151842499,-1324.83546284,0.00014368,2]
[400144893,1767151842509,-1304.82154463,0.00014368,2]
[400144894,1767151842519,-1500.0,0.00014368,2]
[400144895,1767151842529,-1500.0,0.00014368,2]
[400144896,1767151842539,-1500.0,0.00014368,2]
[400144897,1767151842548,-1500.0,0.00014368,2]
[400144898,1767151842558,-1500.0,0.00014368,2]
[400144899,1767151842568,-1500.0,0.00014368,2]
[400144900,1767151842577,-190.31177109,0.00014368,2]
[400144901,1767151842586,-1500.0,0.00014368,2]
[400144902,1767151842595,-1500.0,0.00014368,2]
[400144903,1767151842604,-1500.0,0.00014368,2]
[400144904,1767151842614,-11039.4235009,0.00014496,2]
[400144905,1767151842624,-864.0,0.00014552,2]
[400144906,1767151842633,-1009.91335677,0.00014691,2]
[400144907,1767151842642,-900.0,0.00014768,2]
[400144908,1767151842652,-2497.51573964,0.00014769,6]
[400144909,1767151842661,-524.36073826,0.00014795,2]
[400144910,1767151842670,-1500.0,0.00014795,2]
[400144911,1767151842679,-1500.0,0.00014795,2]
[400144912,1767151842689,-1500.0,0.00014795,2]
[400144913,1767151842698,-1501.27910227,0.00014795,2]
[400144914,1767151842708,-870.59484017,0.00014795,2]
[400144915,1767151842717,-681.08073641,0.00014795,2]
[400144916,1767151842730,-1500.0,0.00014795,2]
[400144917,1767151842739,-614.96936602,0.00014795,2]
[400144918,1767151842748,-1500.0,0.00014795,2]
[400144919,1767151842758,-1500.0,0.00014795,2]
[400144920,1767151842767,-1500.0,0.00014795,2]
[400144921,1767151842777,-1500.0,0.00014795,2]
[400144922,1767151842787,-1500.0,0.00014795,2]
[400144923,1767151842796,-1500.0,0.00014795,2]
[400144924,1767151842806,-1500.0,0.00014795,2]
[400144925,1767151842816,-1500.0,0.00014795,2]
[400144926,1767151842825,-1500.0,0.00014795,2]
[400144927,1767151842834,-1500.0,0.00014795,2]
[400144928,1767151842844,-1500.0,0.00014795,2]
[400144929,1767151842852,-1078.13053233,0.00014795,2]
[400144930,1767151842862,-1068.53710429,0.00014795,2]
[400144931,1767151842872,-1425.73894344,0.00014795,2]
[400144932,1767151842881,-1500.0,0.00014795,2]
[400144933,1767151842891,-690.10820632,0.00014795,2]
[400144934,1767151842900,-1500.0,0.00014795,2]
[400144935,1767151842909,-1500.0,0.00014795,2]
[400144936,1767151842919,-1500.0,0.00014795,2]
[400144937,1767151842929,-1500.0,0.00014795,2]
[400144938,1767151842938,-463.63501052,0.00014795,2]
[400144939,1767151842947,-1500.0,0.00014795,2]
[400144940,1767151842957,-1500.0,0.00014795,2]
[400144941,1767151842967,-1633.65989049,0.00014795,2]
[400144942,1767151842977,-1500.0,0.00014795,2]
[400144943,1767151842987,-1500.0,0.00014795,2]
[400144944,1767151842997,-1500.0,0.00014795,2]
[400144945,1767151843006,-1500.0,0.00014795,2]
[400144946,1767151843016,-1500.0,0.00014795,2]
[400144947,1767151843025,-1500.0,0.00014795,2]
[400144948,1767151843035,-1500.0,0.00014795,2]
[400144949,1767151843143,-1500.0,0.00014795,2]
[400144950,1767151843167,-662.55448324,0.00014795,2]
[400144952,1767151843177,-1142.5109954,0.00014795,2]
[400144953,1767151843187,-1500.0,0.00014795,2]
[400144954,1767151843197,-342.96834915,0.00014795,2]
[400144955,1767151843208,-1500.0,0.00014795,2]
[400144956,1767151843218,-1500.0,0.00014795,2]
[400144957,1767151843228,-1500.0,0.00014795,2]
[400144958,1767151843238,-1500.0,0.00014795,2]
[400144959,1767151843248,-1500.0,0.00014795,2]
[400144960,1767151843258,-1136.51090941,0.00014795,2]
[400144961,1767151843268,-1500.0,0.00014795,2]
[400144962,1767151843279,-1516.82099752,0.00014795,2]
[400144963,1767151843290,-1500.0,0.00014795,2]
[400144964,1767151843300,-1500.0,0.00014795,2]
[400144965,1767151843310,-1500.0,0.00014795,2]
[400144966,1767151843320,-1500.0,0.00014795,2]
[400144967,1767151843330,-1605.24677987,0.00014795,2]
[400144968,1767151843340,-1500.0,0.00014795,2]
[400144969,1767151843350,-1951.0928214,0.00014916,2]
[400144970,1767151843361,-1306.02349709,0.00014916,2]
[400144971,1767151843370,-465.35115233,0.00014916,2]
[400144972,1767151843380,-2000.0,0.00014916,2]
[400144973,1767151843390,-1035.5590815,0.00014916,2]
[400144974,1767151843400,-2113.45090759,0.00014916,2]
[400144975,1767151843410,-534.26412326,0.00014916,2]
[400144976,1767151843420,-2000.0,0.00014916,2]
[400144977,1767151843430,-2000.0,0.00014916,2]
[400144978,1767151843439,-2000.0,0.00014916,2]
[400144979,1767151843449,-1818.87701711,0.00014916,2]
[400144980,1767151843458,-2000.0,0.00014916,2]
[400144981,1767151843468,-685.55855892,0.00014916,2]
[400144982,1767151843477,-2000.0,0.00014916,2]
[400144983,1767151843487,-1079.52271368,0.00014916,2]
[400144984,1767151843496,-2000.0,0.00014916,2]
[400144985,1767151843506,-2000.0,0.00014916,2]
[400144986,1767151843515,-2000.0,0.00014916,2]
[400144987,1767151843524,-2000.0,0.00014916,2]
[400144988,1767151843534,-2000.0,0.00014916,2]
[400144989,1767151843544,-2000.0,0.00014916,2]
[400144990,1767151843553,-2000.0,0.00014916,2]
[400144991,1767151843562,-1431.23584985,0.00014916,2]
[400144992,1767151843572,-2000.0,0.00014916,2]
[400144993,1767151843581,-2000.0,0.00014916,2]
[400144994,1767151843590,-424.40432946,0.00014916,2]
[400144995,1767151843600,-2000.0,0.00014916,2]
[400144996,1767151843610,-449.92095929,0.00014931,6]
[400144997,1767151843619,-80000.0,0.00015,2]
[400144998,1767151843628,-27976.29375996,0.00015,2]
[400144999,1767151843637,-150.77099208,0.00015,2]
[400145000,1767151843647,-151.0,0.00015,2]
[400145001,1767151843656,-151.0,0.00015,2]
[400145002,1767151843666,-3179.85,0.00015024,2]
[400145003,1767151843675,-151.0,0.00015028,2]
[400145004,1767151843685,-158.312179,0.00015028,2]
[400145005,1767151843694,-100000.0,0.00015028,2]
[400145006,1767151843703,-803.5950816,0.00015068,2]
[400145007,1767151843712,-151.0,0.00015129,2]
[400145008,1767151843722,-151.0,0.00015129,2]
[400145009,1767151843731,-151.0,0.00015129,2]
[400145010,1767151843740,-151.0,0.00015129,2]
[400145011,1767151843750,-151.0,0.00015129,2]
[400145012,1767151843759,-151.0,0.00015129,2]
[400145013,1767151843768,-151.0,0.00015129,2]
[400145014,1767151843778,-151.0,0.00015129,2]
[400145015,1767151843787,-151.0,0.00015129,2]
[400145016,1767151843796,-151.0,0.00015129,2]
[400145017,1767151843806,-500.0,0.00015129,2]
[400145018,1767151843815,-151.0,0.00015129,2]
[400145019,1767151843825,-500.0,0.00015129,2]
[400145020,1767151843835,-151.0,0.00015129,2]
[400145021,1767151843844,-500.0,0.00015129,2]
[400145022,1767151843854,-151.0,0.00015129,2]
[400145023,1767151843864,-151.0,0.00015129,2]
[400145024,1767151843873,-500.0,0.00015129,2]
[400145025,1767151843883,-153.1576525,0.00015129,2]
[400145026,1767151843893,-162.62076672,0.00015129,2]
[400145027,1767151843903,-500.0,0.00015129,2]
[400145028,1767151843912,-500.0,0.00015129,2]
[400145029,1767151843921,-500.0,0.00015129,2]
[400145030,1767151843931,-500.0,0.00015129,2]
[400145031,1767151843941,-500.0,0.00015129,2]
[400145032,1767151843950,-500.0,0.00015129,2]
[400145033,1767151843960,-500.0,0.00015129,2]
[400145034,1767151843969,-500.0,0.00015129,2]
[400145035,1767151843979,-500.0,0.00015129,2]
[400145036,1767151843988,-500.0,0.00015129,2]
[400145037,1767151843999,-257.39953178,0.00015129,2]
[400145039,1767151844008,-250.0,0.00015129,2]
[400145041,1767151844018,-250.0,0.00015129,2]
[400145043,1767151844027,-251.64926451,0.00015129,2]
[400145045,1767151844036,-194.747586,0.00015316,2]
[400145047,1767151844046,-194.747586,0.00015316,2]
[400145048,1767151844055,-194.747586,0.00015316,2]
[400145050,1767151844064,-194.747586,0.00015316,2]
[400145052,1767151844074,-1200.0,0.00015316,2]
[400145054,1767151844083,-499.794244,0.00015342,2]
[400145056,1767151844092,-499.794244,0.00015342,2]
[400145058,1767151844101,-499.794244,0.00015342,2]
[400145060,1767151844112,-499.794244,0.00015342,2]
[400145062,1767151844121,-2031.44929217,0.00015342,2]
[400145064,1767151844131,-2148.95093186,0.00015342,2]
[400145066,1767151844140,-1153.38246347,0.00015342,2]
[400145068,1767151844150,-504.00712805,0.00015342,2]
[400145070,1767151844160,-915.94669576,0.00015342,2]
[400145072,1767151844169,-157.67215419,0.00015342,2]
[400145073,1767151844179,-402.01463508,0.00015342,2]
[400145074,1767151844188,-2000.0,0.00015342,2]
[400145075,1767151844198,-2000.0,0.00015342,2]
[400145076,1767151844209,-1636.69571136,0.00015342,2]
[400145077,1767151844220,-2000.0,0.00015342,2]
[400145078,1767151844230,-2000.0,0.00015342,2]
[400145079,1767151844239,-2000.0,0.00015342,2]
[400145080,1767151844249,-922.85192268,0.00015342,2]
[400145081,1767151844258,-2018.84773542,0.00015342,2]
[400145082,1767151844267,-2000.0,0.00015342,2]
[400145083,1767151844277,-2000.0,0.00015342,2]
[400145084,1767151844286,-1510.33134929,0.00015342,2]
[400145085,1767151844296,-2000.0,0.00015342,2]
[400145086,1767151844306,-288.21762562,0.00015342,2]
[400145087,1767151844315,-2000.0,0.00015342,2]
[400145088,1767151844326,-2000.0,0.00015342,2]
[400145089,1767151844336,-1504.79599952,0.00015342,2]
[400145090,1767151844345,-2000.0,0.00015342,2]
[400145091,1767151844357,-2000.0,0.00015342,2]
[400145092,1767151844371,-1009.61748521,0.00015342,2]
[400145093,1767151844385,-1165.86238698,0.00015342,2]
[400145094,1767151844399,-2000.0,0.00015342,2]
[400145095,1767151844411,-1037.58100831,0.00015342,2]
[400145096,1767151844423,-2000.0,0.00015342,2]
[400145097,1767151844437,-2000.0,0.00015342,2]
[400145098,1767151844448,-2000.0,0.00015342,2]
[400145099,1767151844461,-2000.0,0.00015342,2]
[400145100,1767151844474,-2005.94817452,0.00015342,2]
[400145101,1767151844488,-2000.0,0.00015342,2]
[400145102,1767151844500,-1104.13585388,0.00015342,2]
[400145103,1767151844514,-2000.0,0.00015342,2]
[400145104,1767151844527,-1003.48898302,0.00015342,2]
[400145105,1767151844540,-2000.0,0.00015342,2]
[400145106,1767151844552,-1504.98936626,0.00015342,2]
[400145107,1767151844564,-2000.0,0.00015342,2]
[400145108,1767151844577,-2000.0,0.00015342,2]
[400145109,1767151844588,-2500.0,0.00015464,2]
[400145110,1767151844600,-1770.44343412,0.00015464,2]
[400145111,1767151844614,-1849.32071924,0.00015464,2]
[400145112,1767151844627,-2500.0,0.00015464,2]
[400145113,1767151844639,-2500.0,0.00015464,2]
[400145114,1767151844650,-2500.0,0.00015464,2]
[400145115,1767151844664,-2500.0,0.00015464,2]
[400145116,1767151844676,-2500.0,0.00015464,2]
[400145117,1767151844688,-2500.0,0.00015464,2]
[400145118,1767151844700,-2500.0,0.00015464,2]
[400145119,1767151844713,-2500.0,0.00015464,2]
[400145120,1767151844725,-2500.0,0.00015464,2]
[400145121,1767151844737,-2500.0,0.00015464,2]
[400145122,1767151844750,-2500.0,0.00015464,2]
[400145123,1767151844763,-2500.0,0.00015464,2]
[400145124,1767151844776,-1003.81920107,0.00015464,2]